fUST/lending_fUST_20250702
["ID","MTS","AMOUNT","RATE_DAILY","PERIOD"]
[369089262,1751467839958,-460.0,0.00019178,2]
[369089263,1751467839968,-460.0,0.00019178,2]
[369089264,1751467839980,-1559.29,0.00019178,2]
[369089265,1751467839992,-460.0,0.00019178,2]
[369089266,1751467840008,-460.0,0.00019178,2]
[369089267,1751467840025,-460.0,0.00019178,2]
[369089268,1751467840036,-460.0,0.00019178,2]
[369089269,1751467840047,-460.0,0.00019178,2]
[369089270,1751467840058,-460.0,0.00019178,2]
[369089272,1751467840069,-460.0,0.00019178,2]
[369089273,1751467840080,-2569.07,0.00019178,2]
[369089274,1751467840092,-460.0,0.00019178,2]
[369089275,1751467840103,-460.0,0.00019178,2]
[369089276,1751467840114,-548.08,0.00019178,2]
[369089277,1751467840124,-460.0,0.00019178,2]
[369089278,1751467840135,-460.0,0.00019178,2]
[369089279,1751467840145,-511.98,0.00019178,2]
[369089280,1751467840157,-465.76536114,0.00019178,2]
[369089281,1751467840169,-162.44540029,0.00019178,2]
[369089282,1751467840180,-2460.77,0.00019178,2]
[369089283,1751467840190,-556.3,0.00019178,2]
[369089284,1751467840200,-532.8,0.00019178,2]
[369089285,1751467840210,-4045.18,0.00019178,2]
[369089286,1751467840219,-840.25,0.00019178,2]
[369089287,1751467840229,-460.0,0.00019178,2]
[369089288,1751467840239,-460.0,0.00019178,2]
[369089289,1751467840248,-835.59,0.00019178,2]
[369089290,1751467840258,-500.0,0.00019178,2]
[369089291,1751467840268,-805.54,0.00019178,2]
[369089292,1751467840277,-490.99,0.00019178,2]
[369089293,1751467840287,-460.0,0.00019178,2]
[369089294,1751467840297,-460.0,0.00019178,2]
[369089295,1751467840306,-471.09,0.00019178,2]
[369089296,1751467840316,-460.0,0.00019178,2]
[369089297,1751467840326,-462.70684945,0.00019178,2]
[369089298,1751467840336,-526.51,0.00019178,2]
[369089299,1751467840346,-460.0,0.00019178,2]
[369089300,1751467840355,-460.0,0.00019178,2]
[369089301,1751467840366,-460.0,0.00019178,2]
[369089302,1751467840375,-313.04376125,0.00019178,2]
[369089303,1751467840385,-460.0,0.00019178,2]
[369089304,1751467840395,-460.0,0.00019178,2]
[369089306,1751467840405,-460.0,0.00019178,2]
[369089308,1751467840415,-460.0,0.00019178,2]
[369089309,1751467840424,-3528.81,0.00019178,2]
[369089310,1751467840434,-598.27870759,0.00019178,2]
[369089311,1751467840444,-460.0,0.00019178,2]
[369089312,1751467840454,-235.33781187,0.00019178,2]
[369089313,1751467840464,-1562.62,0.00019178,2]
[369089314,1751467840474,-487.97,0.00019178,2]
[369089315,1751467840484,-460.0,0.00019178,2]
[369089316,1751467840493,-1323.05,0.00019178,2]
[369089317,1751467840504,-2319.6,0.00019178,2]
[369089318,1751467840514,-302.68778321,0.00019178,2]
[369089319,1751467840523,-460.0,0.00019178,2]
[369089320,1751467840533,-1724.28,0.00019178,2]
[369089321,1751467840543,-466.18,0.00019178,2]
[369089322,1751467840553,-460.0,0.00019178,2]
[369089323,1751467840562,-460.0,0.00019178,2]
[369089324,1751467840572,-460.0,0.00019178,2]
[369089325,1751467840581,-3895.9,0.00019178,2]
[369089326,1751467840591,-1931.14,0.00019178,2]
[369089327,1751467840601,-276.76,0.00019178,2]
[369089328,1751467840610,-547.71,0.00019178,2]
[369089329,1751467840620,-460.0,0.00019178,2]
[369089330,1751467840629,-460.0,0.00019178,2]
[369089331,1751467840639,-460.0,0.00019178,2]
[369089332,1751467840648,-460.0,0.00019178,2]
[369089333,1751467840658,-460.0,0.00019178,2]
[369089334,1751467840668,-491.91,0.00019178,2]
[369089335,1751467840677,-912.86,0.00019178,2]
[369089336,1751467840687,-1012.06,0.00019178,2]
[369089337,1751467840697,-460.0,0.00019178,2]
[369089338,1751467840707,-460.0,0.00019178,2]
[369089339,1751467840717,-1538.02,0.00019178,2]
[369089340,1751467840726,-460.0,0.00019178,2]
[369089341,1751467840736,-460.0,0.00019178,2]
[369089342,1751467840746,-460.0,0.00019178,2]
[369089343,1751467840756,-460.0,0.00019178,2]
[369089344,1751467840766,-460.0,0.00019178,2]
[369089345,1751467840776,-460.1135327,0.00019178,2]
[369089346,1751467840786,-460.0,0.00019178,2]
[369089347,1751467840796,-460.0,0.00019178,2]
[369089348,1751467840805,-460.0,0.00019178,2]
[369089349,1751467840815,-460.0,0.00019178,2]
[369089350,1751467840825,-842.53,0.00019178,2]
[369089351,1751467840835,-460.0,0.00019178,2]
[369089352,1751467840844,-460.0,0.00019178,2]
[369089353,1751467840854,-460.0,0.00019178,2]
[369089354,1751467840867,-1880.93,0.00019178,2]
[369089355,1751467840877,-460.0,0.00019178,2]
[369089356,1751467840887,-460.0,0.00019178,2]
[369089357,1751467840897,-460.0,0.00019178,2]
[369089358,1751467840907,-223.916414,0.00019178,2]
[369089359,1751467840917,-160.0,0.00019188,2]
[369089360,1751467840926,-160.0,0.00019188,2]
[369089361,1751467840937,-160.0,0.00019188,2]
[369089362,1751467840946,-160.0,0.00019188,2]
[369089363,1751467840956,-213.90888375,0.00019188,2]
[369089364,1751467840966,-837.27862799,0.00019189,2]
[369089365,1751467840975,-230.34465076,0.00019189,2]
[369089366,1751467840985,-160.0,0.00019189,2]
[369089367,1751467840994,-215.04179405,0.00019189,2]
[369089368,1751467841003,-12573.65100011,0.00019189,2]
[369089369,1751467841013,-3921.2219578,0.00019279,2]
[369089370,1751467841023,-185.10112498,0.00019305,2]
[369089371,1751467841032,-5000.0,0.00019337,2]
[369089372,1751467841041,-500.0,0.00019388,2]
[369089373,1751467841051,-500.0,0.00019388,2]
[369089374,1751467841060,-500.0,0.00019388,2]
[369089375,1751467841070,-949.50601118,0.00019398,2]
[369089376,1751467841079,-460.0,0.00019452,2]
[369089377,1751467841089,-526.61215285,0.00019452,2]
[369089378,1751467841099,-460.0,0.00019452,2]
[369089379,1751467841108,-460.0,0.00019452,2]
[369089380,1751467841117,-460.0,0.00019452,2]
[369089381,1751467841127,-197.5757034,0.00019452,2]
[369089382,1751467841136,-460.0,0.00019452,2]
[369089383,1751467841146,-460.0,0.00019452,2]
[369089384,1751467841156,-460.0,0.00019452,2]
[369089385,1751467841166,-486.23,0.00019452,2]
[369089386,1751467841176,-460.0,0.00019452,2]
[369089387,1751467841186,-460.0,0.00019452,2]
[369089388,1751467841195,-460.0,0.00019452,2]
[369089389,1751467841205,-543.32,0.00019452,2]
[369089390,1751467841215,-523.73,0.00019452,2]
[369089391,1751467841224,-595.77,0.00019452,2]
[369089392,1751467841233,-460.0,0.00019452,2]
[369089393,1751467841243,-460.0,0.00019452,2]
[369089394,1751467841252,-460.0,0.00019452,2]
[369089395,1751467841261,-414.6814643,0.00019452,2]
[369089396,1751467841270,-873.47,0.00019452,2]
[369089397,1751467841280,-460.0,0.00019452,2]
[369089398,1751467841289,-460.0,0.00019452,2]
[369089399,1751467841299,-460.0,0.00019452,2]
[369089400,1751467841308,-460.0,0.00019452,2]
[369089401,1751467841318,-460.0,0.00019452,2]
[369089402,1751467841327,-552.6,0.00019452,2]
[369089403,1751467841337,-489.84,0.00019452,2]
[369089404,1751467841346,-460.0,0.00019452,2]
[369089405,1751467841356,-460.0,0.00019452,2]
[369089406,1751467841367,-576.38881809,0.00019452,2]
[369089407,1751467841376,-460.0,0.00019452,2]
[369089408,1751467841385,-460.0,0.00019452,2]
[369089409,1751467841395,-505.36,0.00019452,2]
[369089410,1751467841404,-460.0,0.00019452,2]
[369089411,1751467841414,-515.2,0.00019452,2]
[369089412,1751467841423,-1517.33,0.00019452,2]
[369089413,1751467841433,-460.0,0.00019452,2]
[369089414,1751467841442,-460.0,0.00019452,2]
[369089415,1751467841452,-460.0,0.00019452,2]
[369089416,1751467841462,-399.63,0.00019452,2]
[369089417,1751467841471,-460.0,0.00019452,2]
[369089418,1751467841481,-460.0,0.00019452,2]
[369089419,1751467841491,-778.63,0.00019452,2]
[369089420,1751467841501,-1716.24,0.00019452,2]
[369089421,1751467841510,-460.0,0.00019452,2]
[369089422,1751467841520,-2873.38,0.00019452,2]
[369089423,1751467841530,-460.0,0.00019452,2]
[369089424,1751467841540,-460.0,0.00019452,2]
[369089425,1751467841551,-460.0,0.00019452,2]
[369089426,1751467841560,-460.0,0.00019452,2]
[369089427,1751467841570,-460.0,0.00019452,2]
[369089428,1751467841580,-1559.29,0.00019452,2]
[369089429,1751467841592,-460.0,0.00019452,2]
[369089430,1751467841601,-460.0,0.00019452,2]
[369089431,1751467841611,-460.0,0.00019452,2]
[369089432,1751467841621,-460.0,0.00019452,2]
[369089433,1751467841630,-460.0,0.00019452,2]
[369089434,1751467841640,-2569.07,0.00019452,2]
[369089435,1751467841649,-460.0,0.00019452,2]
[369089436,1751467841659,-548.08,0.00019452,2]
[369089437,1751467841668,-460.0,0.00019452,2]
[369089438,1751467841678,-511.98,0.00019452,2]
[369089439,1751467841687,-556.3,0.00019452,2]
[369089440,1751467841696,-532.8,0.00019452,2]
[369089441,1751467841706,-2460.77,0.00019452,2]
[369089442,1751467841716,-4045.18,0.00019452,2]
[369089443,1751467841725,-840.25,0.00019452,2]
[369089444,1751467841734,-460.0,0.00019452,2]
[369089445,1751467841744,-835.59,0.00019452,2]
[369089446,1751467841753,-805.54,0.00019452,2]
[369089447,1751467841763,-460.0,0.00019452,2]
[369089448,1751467841773,-471.09,0.00019452,2]
[369089449,1751467841783,-526.51,0.00019452,2]
[369089450,1751467841793,-460.0,0.00019452,2]
[369089451,1751467841802,-460.0,0.00019452,2]
[369089452,1751467841811,-460.0,0.00019452,2]
[369089453,1751467841821,-460.0,0.00019452,2]
[369089454,1751467841830,-460.0,0.00019452,2]
[369089455,1751467841839,-460.0,0.00019452,2]
[369089456,1751467841848,-460.0,0.00019452,2]
[369089457,1751467841858,-3528.81,0.00019452,2]
[369089458,1751467841869,-460.0,0.00019452,2]
[369089459,1751467841879,-1562.62,0.00019452,2]
[369089460,1751467841888,-487.97,0.00019452,2]
[369089461,1751467841897,-460.0,0.00019452,2]
[369089462,1751467841907,-1323.05,0.00019452,2]
[369089463,1751467841917,-2319.6,0.00019452,2]
[369089464,1751467841927,-460.0,0.00019452,2]
[369089465,1751467841936,-1724.28,0.00019452,2]
[369089466,1751467841948,-460.0,0.00019452,2]
[369089467,1751467841958,-460.0,0.00019452,2]
[369089468,1751467841968,-3895.9,0.00019452,2]
[369089469,1751467841977,-1931.14,0.00019452,2]
[369089470,1751467841986,-547.71,0.00019452,2]
[369089471,1751467841996,-460.0,0.00019452,2]
[369089472,1751467842005,-460.0,0.00019452,2]
[369089473,1751467842014,-460.0,0.00019452,2]
[369089474,1751467842024,-491.91,0.00019452,2]
[369089475,1751467842033,-912.86,0.00019452,2]
[369089476,1751467842042,-1012.06,0.00019452,2]
[369089477,1751467842052,-460.0,0.00019452,2]
[369089478,1751467842061,-1538.02,0.00019452,2]
[369089479,1751467842070,-460.0,0.00019452,2]
[369089480,1751467842080,-460.0,0.00019452,2]
[369089481,1751467842089,-460.0,0.00019452,2]
[369089482,1751467842099,-460.0,0.00019452,2]
[369089483,1751467842108,-460.0,0.00019452,2]
[369089484,1751467842118,-460.0,0.00019452,2]
[369089485,1751467842127,-460.0,0.00019452,2]
[369089486,1751467842136,-460.0,0.00019452,2]
[369089487,1751467842146,-460.0,0.00019452,2]
[369089488,1751467842155,-842.53,0.00019452,2]
[369089489,1751467842164,-359.18944173,0.00019452,2]
[369089490,1751467842174,-460.0,0.00019452,2]
[369089491,1751467842183,-1880.93,0.00019452,2]
[369089492,1751467842193,-460.0,0.00019452,2]
[369089493,1751467842202,-460.0,0.00019452,2]
[369089494,1751467842212,-3921.2219578,0.00019555,2]
[369089495,1751467842221,-184.44062151,0.00019636,2]
[369089496,1751467842230,-500.0,0.00019636,2]
[369089497,1751467842240,-1091.0,0.00019644,2]
[369089498,1751467842250,-1091.0,0.00019671,2]
[369089499,1751467842260,-1091.0,0.00019699,2]
[369089500,1751467842269,-460.0,0.00019726,2]
[369089501,1751467842279,-460.0,0.00019726,2]
[369089502,1751467842288,-404.35,0.00019726,2]
[369089503,1751467842297,-460.0,0.00019726,2]
[369089504,1751467842307,-460.0,0.00019726,2]
[369089505,1751467842316,-460.0,0.00019726,2]
[369089506,1751467842326,-486.23,0.00019726,2]
[369089507,1751467842336,-460.0,0.00019726,2]
[369089508,1751467842345,-460.0,0.00019726,2]
[369089509,1751467842355,-460.0,0.00019726,2]
[369089510,1751467842364,-543.32,0.00019726,2]
[369089511,1751467842373,-523.73,0.00019726,2]
[369089512,1751467842383,-595.77,0.00019726,2]
[369089513,1751467842392,-460.0,0.00019726,2]
[369089514,1751467842403,-221.29,0.00019726,2]
[369089515,1751467842413,-460.0,0.00019726,2]
[369089516,1751467842422,-873.47,0.00019726,2]
[369089517,1751467842432,-460.0,0.00019726,2]
[369089518,1751467842442,-460.0,0.00019726,2]
[369089519,1751467842453,-460.0,0.00019726,2]
[369089520,1751467842463,-460.0,0.00019726,2]
[369089521,1751467842473,-552.6,0.00019726,2]
[369089522,1751467842482,-489.84,0.00019726,2]
[369089523,1751467842492,-460.0,0.00019726,2]
[369089524,1751467842501,-460.0,0.00019726,2]
[369089525,1751467842510,-580.0,0.00019726,2]
[369089526,1751467842519,-460.0,0.00019726,2]
[369089527,1751467842529,-505.36,0.00019726,2]
[369089528,1751467842538,-460.0,0.00019726,2]
[369089529,1751467842548,-515.2,0.00019726,2]
[369089530,1751467842557,-1517.33,0.00019726,2]
[369089531,1751467842567,-460.0,0.00019726,2]
[369089532,1751467842576,-460.0,0.00019726,2]
[369089533,1751467842586,-607.28,0.00019726,2]
[369089534,1751467842596,-460.0,0.00019726,2]
[369089535,1751467842607,-460.0,0.00019726,2]
[369089536,1751467842617,-778.63,0.00019726,2]
[369089537,1751467842626,-1716.24,0.00019726,2]
[369089538,1751467842636,-460.0,0.00019726,2]
[369089539,1751467842645,-2873.38,0.00019726,2]
[369089540,1751467842655,-460.0,0.00019726,2]
[369089541,1751467842665,-460.0,0.00019726,2]
[369089542,1751467842675,-460.0,0.00019726,2]
[369089543,1751467842685,-481.66,0.00019726,2]
[369089544,1751467842695,-282.83152573,0.00019726,2]
[369089545,1751467842706,-1559.29,0.00019726,2]
[369089546,1751467842716,-463.66,0.00019726,2]
[369089547,1751467842726,-460.0,0.00019726,2]
[369089548,1751467842736,-460.0,0.00019726,2]
[369089549,1751467842745,-460.0,0.00019726,2]
[369089550,1751467842755,-460.0,0.00019726,2]
[369089552,1751467842765,-2569.07,0.00019726,2]
[369089553,1751467842774,-460.0,0.00019726,2]
[369089554,1751467842785,-548.08,0.00019726,2]
[369089555,1751467842795,-460.0,0.00019726,2]
[369089556,1751467842805,-511.98,0.00019726,2]
[369089557,1751467842814,-532.8,0.00019726,2]
[369089558,1751467842824,-556.3,0.00019726,2]
[369089559,1751467842834,-2460.77,0.00019726,2]
[369089560,1751467842845,-4045.18,0.00019726,2]
[369089561,1751467842855,-840.25,0.00019726,2]
[369089562,1751467842869,-460.0,0.00019726,2]
[369089563,1751467842879,-835.59,0.00019726,2]
[369089564,1751467842888,-805.54,0.00019726,2]
[369089565,1751467842899,-460.0,0.00019726,2]
[369089567,1751467842910,-471.09,0.00019726,2]
[369089568,1751467842920,-526.51,0.00019726,2]
[369089571,1751467842930,-460.0,0.00019726,2]
[369089573,1751467843076,-460.0,0.00019726,2]
[369089575,1751467843085,-460.0,0.00019726,2]
[369089577,1751467843095,-460.0,0.00019726,2]
[369089579,1751467843104,-460.0,0.00019726,2]
[369089581,1751467843113,-460.0,0.00019726,2]
[369089583,1751467843122,-380.65540756,0.00019726,2]
[369089585,1751467843131,-3528.81,0.00019726,2]
[369089587,1751467843142,-460.0,0.00019726,2]
[369089589,1751467843151,-1562.62,0.00019726,2]
[369089591,1751467843160,-487.97,0.00019726,2]
[369089593,1751467843170,-460.0,0.00019726,2]
[369089595,1751467843180,-1323.05,0.00019726,2]
[369089597,1751467843189,-2319.6,0.00019726,2]
[369089599,1751467843199,-460.0,0.00019726,2]
[369089601,1751467843210,-1724.28,0.00019726,2]
[369089603,1751467843220,-443.40624203,0.00019726,2]
[369089605,1751467843229,-460.0,0.00019726,2]
[369089607,1751467843239,-3895.9,0.00019726,2]
[369089609,1751467843248,-1931.14,0.00019726,2]
[369089611,1751467843258,-547.71,0.00019726,2]
[369089613,1751467843267,-460.0,0.00019726,2]
[369089616,1751467843276,-460.0,0.00019726,2]
[369089619,1751467843286,-491.91,0.00019726,2]
[369089621,1751467843295,-912.86,0.00019726,2]
[369089624,1751467843305,-1012.06,0.00019726,2]
[369089626,1751467843315,-460.0,0.00019726,2]
[369089628,1751467843324,-1538.02,0.00019726,2]
[369089629,1751467843333,-460.0,0.00019726,2]
[369089630,1751467843342,-460.0,0.00019726,2]
[369089631,1751467843352,-460.0,0.00019726,2]
[369089632,1751467843362,-460.0,0.00019726,2]
[369089633,1751467843371,-460.0,0.00019726,2]
[369089634,1751467843381,-460.0,0.00019726,2]
[369089635,1751467843390,-460.0,0.00019726,2]
[369089636,1751467843399,-460.0,0.00019726,2]
[369089637,1751467843409,-460.0,0.00019726,2]
[369089638,1751467843419,-842.53,0.00019726,2]
[369089639,1751467843428,-460.0,0.00019726,2]
[369089640,1751467843437,-1880.93,0.00019726,2]
[369089641,1751467843447,-460.0,0.00019726,2]
[369089642,1751467843457,-1091.0,0.00019726,2]
[369089643,1751467843467,-1091.0,0.00019754,2]
[369089644,1751467843476,-1091.0,0.00019781,2]
[369089645,1751467843485,-1091.0,0.00019808,2]
[369089647,1751467843495,-3921.2219578,0.00019831,2]
[369089649,1751467843504,-1091.0,0.00019836,2]
[369089651,1751467843514,-215.0738,0.00019843,2]
[369089652,1751467843522,-1091.0,0.00019863,2]
[369089653,1751467843532,-5000.0,0.00019885,2]
[369089654,1751467843541,-1091.0,0.00019891,2]
[369089655,1751467843551,-1091.0,0.00019918,2]
[369089656,1751467843560,-174.054868,0.00019934,2]
[369089657,1751467843569,-174.054868,0.00019934,2]
[369089658,1751467843578,-1000.0,0.00019936,2]
[369089659,1751467843588,-1000.0,0.00019936,2]
[369089660,1751467843597,-1091.0,0.00019945,2]
[369089661,1751467843606,-313.33711761,0.00019972,2]
[369089662,1751467843616,-1091.0,0.00019973,2]
[369089663,1751467843625,-460.0,0.0002,2]
[369089664,1751467843635,-181.54389878,0.0002,2]
[369089665,1751467843903,-694.43,0.00019178,2]
[369089666,1751467843914,-694.43,0.00019452,2]
[369089667,1751467843923,-460.0,0.00019726,2]
[369089668,1751467843933,-694.43,0.00019726,2]
[369089669,1751467843943,-337.70331021,0.0002,2]
[369089670,1751467843954,-460.0,0.0002,2]
[369089671,1751467843963,-460.0,0.0002,2]
[369089672,1751467843972,-486.23,0.0002,2]
[369089673,1751467843982,-460.0,0.0002,2]
[369089674,1751467843991,-518.82,0.0002,2]
[369089675,1751467844000,-460.0,0.0002,2]
[369089676,1751467844010,-543.32,0.0002,2]
[369089677,1751467844019,-523.73,0.0002,2]
[369089678,1751467844029,-228.45153563,0.0002,2]
[369089679,1751467844041,-367.31846437,0.0002,2]
[369089680,1751467844050,-151.0,0.0002,2]
[369089681,1751467844059,-873.47,0.0002,2]
[369089682,1751467844068,-460.0,0.0002,2]
[369089683,1751467844078,-460.0,0.0002,2]
[369089684,1751467844088,-460.0,0.0002,2]
[369089685,1751467844097,-552.6,0.0002,2]
[369089686,1751467844107,-151.0,0.0002,2]
[369089687,1751467844116,-481.80401276,0.0002,2]
[369089688,1751467844202,-8.03598724,0.0002,2]
[369089689,1751467844211,-460.0,0.0002,2]
[369089690,1751467844220,-435.41980156,0.0002,2]
[369089691,1751467844521,-24.58019844,0.0002,2]
[369089692,1751467844534,-151.0,0.0002,2]
[369089693,1751467844549,-460.0,0.0002,2]
[369089694,1751467844564,-1517.33,0.0002,2]
[369089695,1751467844578,-460.0,0.0002,2]
[369089696,1751467844592,-460.0,0.0002,2]
[369089697,1751467844607,-460.0,0.0002,2]
[369089698,1751467844622,-460.0,0.0002,2]
[369089699,1751467844636,-778.63,0.0002,2]
[369089700,1751467844649,-515.09046653,0.0002,2]
[369089701,1751467844663,-1716.24,0.0002,2]
[369089702,1751467844677,-2873.38,0.0002,2]
[369089703,1751467844690,-460.0,0.0002,2]
[369089704,1751467844706,-460.0,0.0002,2]
[369089705,1751467844721,-460.0,0.0002,2]
[369089706,1751467844735,-1559.29,0.0002,2]
[369089707,1751467844749,-460.0,0.0002,2]
[369089708,1751467844761,-460.0,0.0002,2]
[369089709,1751467844772,-460.0,0.0002,2]
[369089710,1751467844782,-2569.07,0.0002,2]
[369089711,1751467844790,-460.0,0.0002,2]
[369089712,1751467844801,-548.08,0.0002,2]
[369089713,1751467844810,-460.0,0.0002,2]
[369089714,1751467844820,-511.98,0.0002,2]
[369089715,1751467844833,-532.8,0.0002,2]
[369089716,1751467844844,-556.3,0.0002,2]
[369089717,1751467844857,-2460.77,0.0002,2]
[369089718,1751467844872,-4045.18,0.0002,2]
[369089719,1751467844885,-840.25,0.0002,2]
[369089720,1751467844897,-460.0,0.0002,2]
[369089721,1751467844912,-835.59,0.0002,2]
[369089722,1751467844924,-805.54,0.0002,2]
[369089723,1751467844937,-471.09,0.0002,2]
[369089724,1751467844947,-526.51,0.0002,2]
[369089725,1751467844962,-460.0,0.0002,2]
[369089726,1751467844973,-460.0,0.0002,2]
[369089727,1751467844983,-460.0,0.0002,2]
[369089728,1751467844993,-460.0,0.0002,2]
[369089729,1751467845005,-460.0,0.0002,2]
[369089730,1751467845019,-3528.81,0.0002,2]
[369089731,1751467845033,-1562.62,0.0002,2]
[369089732,1751467845045,-487.97,0.0002,2]
[369089733,1751467845056,-460.0,0.0002,2]
[369089734,1751467845067,-1323.05,0.0002,2]
[369089735,1751467845078,-2319.6,0.0002,2]
[369089736,1751467845090,-460.0,0.0002,2]
[369089737,1751467845102,-1724.28,0.0002,2]
[369089738,1751467845113,-3895.9,0.0002,2]
[369089739,1751467845123,-1931.14,0.0002,2]
[369089740,1751467845134,-547.71,0.0002,2]
[369089741,1751467845145,-460.0,0.0002,2]
[369089742,1751467845156,-460.0,0.0002,2]
[369089743,1751467845167,-491.91,0.0002,2]
[369089744,1751467845180,-912.86,0.0002,2]
[369089745,1751467845192,-1012.06,0.0002,2]
[369089746,1751467845204,-460.0,0.0002,2]
[369089747,1751467845216,-1538.02,0.0002,2]
[369089748,1751467845227,-460.0,0.0002,2]
[369089749,1751467845238,-460.0,0.0002,2]
[369089750,1751467845250,-460.0,0.0002,2]
[369089751,1751467845260,-460.0,0.0002,2]
[369089752,1751467845271,-460.0,0.0002,2]
[369089753,1751467845282,-460.0,0.0002,2]
[369089754,1751467845293,-460.0,0.0002,2]
[369089755,1751467845304,-460.0,0.0002,2]
[369089756,1751467845315,-460.0,0.0002,2]
[369089757,1751467845327,-842.53,0.0002,2]
[369089758,1751467845338,-1880.93,0.0002,2]
[369089759,1751467845349,-460.0,0.0002,2]
[369089760,1751467845360,-460.0,0.0002,2]
[369089761,1751467845371,-694.43,0.0002,2]
[369089762,1751467845383,-1091.0,0.0002,2]
[369089763,1751467845397,-1091.0,0.00020028,2]
[369089764,1751467845410,-1091.0,0.00020055,2]
[369089765,1751467845421,-1091.0,0.00020082,2]
[369089766,1751467845432,-949.50601118,0.00020092,2]
[369089767,1751467845443,-966.0,0.00020094,2]
[369089768,1751467845454,-2151.0,0.00020094,2]
[369089769,1751467845465,-646.0,0.00020094,2]
[369089770,1751467845476,-150.0,0.00020094,2]
[369089771,1751467845486,-150.0,0.00020094,2]
[369089772,1751467845497,-406.0,0.00020094,2]
[369089773,1751467845508,-150.0,0.00020094,2]
[369089774,1751467845519,-3921.2219578,0.00020107,2]
[369089775,1751467845531,-1091.0,0.0002011,2]
[369089776,1751467845542,-1091.0,0.00020137,2]
[369089777,1751467845554,-1091.0,0.00020165,2]
[369089778,1751467845565,-1000.0,0.00020184,2]
[369089779,1751467845576,-400.926962,0.00020187,2]
[369089780,1751467845588,-1091.0,0.00020192,2]
[369089781,1751467845599,-1091.0,0.00020219,2]
[369089782,1751467845611,-587.0,0.00020244,2]
[369089783,1751467845623,-1091.0,0.00020247,2]
[369089784,1751467845636,-185.10112498,0.00020257,2]
[369089785,1751467845649,-460.0,0.00020273,2]
[369089786,1751467845660,-486.23,0.00020273,2]
[369089787,1751467845673,-460.0,0.00020273,2]
[369089788,1751467845686,-460.0,0.00020273,2]
[369089789,1751467845698,-543.32,0.00020273,2]
[369089790,1751467845714,-523.73,0.00020273,2]
[369089791,1751467845727,-595.77,0.00020273,2]
[369089792,1751467845749,-151.0,0.00020273,2]
[369089794,1751467845764,-873.47,0.00020273,2]
[369089796,1751467845774,-460.0,0.00020273,2]
[369089797,1751467845784,-329.17936487,0.00020273,2]
[369089818,1751467846289,-273.3843016,0.00019178,2]
[369089819,1751467846299,-237.51884541,0.00020273,2]
[369089820,1751467846308,-552.6,0.00020273,2]
[369089821,1751467846318,-489.84,0.00020273,2]
[369089822,1751467846327,-208.21472286,0.00020273,2]
[369089823,1751467846337,-174.58661708,0.00020273,2]